[Event "Titled Tuesday Blitz May 24 Late 2022"]
[White "Romanchuk, Viktor"]
[Black "Mahdavi, Reza"]
[WhiteFideId "14109271"]
[BlackFideId "12595926"]
[WhiteElo "2242"]
[BlackElo "2253"]
[Result "1-0"]
[Round "04"]
[TimeControl "180+1"]
[Date "2022.05.24"]
[WhiteClock "0:00:09"]
[BlackClock "0:00:05"]

1. d4 {[%clk 0:03:00]}  g6 {[%clk 0:02:56]} 2. c4 {[%clk 0:03:00]}  Bg7 {[%clk 0:02:56]} 3. Nf3 {[%clk 0:03:00]}  d6 {[%clk 0:02:57]} 4. g3 {[%clk 0:03:01]}  Nc6 {[%clk 0:02:57]} 5. Bg2 {[%clk 0:03:01]}  Bd7 {[%clk 0:02:58]} 6. O-O {[%clk 0:03:01]}  Qc8 {[%clk 0:02:59]} 7. Re1 {[%clk 0:03:00]}  Bh3 {[%clk 0:02:59]} 8. Bh1 {[%clk 0:03:00]}  h5 {[%clk 0:03:00]} 9. Nc3 {[%clk 0:02:58]}  h4 {[%clk 0:02:59]} 10. Bf4 {[%clk 0:02:44]}  hxg3 {[%clk 0:02:57]} 11. fxg3 {[%clk 0:02:39]}  Nf6 {[%clk 0:02:56]} 12. d5 {[%clk 0:02:38]}  Nb8 {[%clk 0:02:52]} 13. e4 {[%clk 0:02:35]}  Nbd7 {[%clk 0:02:52]} 14. e5 {[%clk 0:02:32]}  dxe5 {[%clk 0:02:51]} 15. Nxe5 {[%clk 0:02:31]}  Nxe5 {[%clk 0:02:52]} 16. Bxe5 {[%clk 0:02:31]}  Qf5 {[%clk 0:02:28]} 17. Qd4 {[%clk 0:02:12]}  O-O {[%clk 0:02:02]} 18. Bg2 {[%clk 0:01:50]}  Bxg2 {[%clk 0:02:00]} 19. Kxg2 {[%clk 0:01:49]}  c6 {[%clk 0:01:46]} 20. Qf4 {[%clk 0:01:32]}  Qh5 {[%clk 0:01:33]} 21. h3 {[%clk 0:01:26]}  cxd5 {[%clk 0:01:31]} 22. cxd5 {[%clk 0:01:27]}  Rfd8 {[%clk 0:01:28]} 23. Rad1 {[%clk 0:01:26]}  Rac8 {[%clk 0:01:26]} 24. d6 {[%clk 0:01:00]}  Re8 {[%clk 0:00:44]} 25. Bxf6 {[%clk 0:00:50]}  Bxf6 {[%clk 0:00:43]} 26. d7 {[%clk 0:00:50]}  Rcd8 {[%clk 0:00:37]} 27. dxe8=Q+ {[%clk 0:00:49]}  Rxe8 {[%clk 0:00:38]} 28. Rd5 {[%clk 0:00:45]}  Qh7 {[%clk 0:00:34]} 29. Ne4 {[%clk 0:00:42]}  Bh8 {[%clk 0:00:32]} 30. Rd7 {[%clk 0:00:29]}  Qg7 {[%clk 0:00:32]} 31. Rxb7 {[%clk 0:00:23]}  Qd4 {[%clk 0:00:30]} 32. Re2 {[%clk 0:00:23]}  Qd5 {[%clk 0:00:29]} 33. Rb3 {[%clk 0:00:18]}  Be5 {[%clk 0:00:27]} 34. Qf3 {[%clk 0:00:18]}  Qd7 {[%clk 0:00:21]} 35. Ng5 {[%clk 0:00:15]}  Bf6 {[%clk 0:00:21]} 36. Ne4 {[%clk 0:00:15]}  Bd4 {[%clk 0:00:21]} 37. Rd3 {[%clk 0:00:15]}  Kg7 {[%clk 0:00:18]} 38. Red2 {[%clk 0:00:16]}  e5 {[%clk 0:00:18]} 39. Qf6+ {[%clk 0:00:15]}  Kg8 {[%clk 0:00:18]} 40. Qxg6+ {[%clk 0:00:14]}  Kf8 {[%clk 0:00:15]} 41. Qh6+ {[%clk 0:00:13]}  Ke7 {[%clk 0:00:14]} 42. Qg5+ {[%clk 0:00:13]}  Kf8 {[%clk 0:00:13]} 43. Qh6+ {[%clk 0:00:12]}  Ke7 {[%clk 0:00:14]} 44. Qh4+ {[%clk 0:00:11]}  Kf8 {[%clk 0:00:14]} 45. Qg4 {[%clk 0:00:12]}  Qb7 {[%clk 0:00:14]} 46. Qf3 {[%clk 0:00:12]}  Qb6 {[%clk 0:00:13]} 47. Ng5 {[%clk 0:00:11]}  Qg6 {[%clk 0:00:13]} 48. h4 {[%clk 0:00:11]}  Re7 {[%clk 0:00:12]} 49. Qe4 {[%clk 0:00:11]}  Qa6 {[%clk 0:00:09]} 50. Rf3 {[%clk 0:00:10]}  Qc4 {[%clk 0:00:08]} 51. Qh7 {[%clk 0:00:10]}  Ke8 {[%clk 0:00:08]} 52. Qh8+ {[%clk 0:00:10]}  Kd7 {[%clk 0:00:09]} 53. Qf6 {[%clk 0:00:10]}  Qc1 {[%clk 0:00:09]} 54. Rfd3 {[%clk 0:00:09]}  Qg1+ {[%clk 0:00:09]} 55. Kh3 {[%clk 0:00:10]}  Qh1+ {[%clk 0:00:09]} 56. Kg4 {[%clk 0:00:10]}  Ke8 {[%clk 0:00:07]} 57. Qh8+ {[%clk 0:00:09]}  Kd7 {[%clk 0:00:08]} 58. Rxd4+ {[%clk 0:00:10]}  exd4 {[%clk 0:00:08]} 59. Qxd4+ {[%clk 0:00:10]}  Kc6 {[%clk 0:00:08]} 60. Qd6+ {[%clk 0:00:10]}  Kb5 {[%clk 0:00:08]} 61. Qxe7 {[%clk 0:00:10]}  Qc1 {[%clk 0:00:07]} 62. Qe2+ {[%clk 0:00:10]}  Kb6 {[%clk 0:00:07]} 63. Qe3+ {[%clk 0:00:09]}  Kc7 {[%clk 0:00:06]} 64. Rd3 {[%clk 0:00:09]}  Qc4+ {[%clk 0:00:05]} 65. Rd4 {[%clk 0:00:09]}  Qf1 {[%clk 0:00:05]} 66. Qc3+ {[%clk 0:00:09]}  Kb6 {[%clk 0:00:05]} 67. Rb4+ {[%clk 0:00:09]} 1-0


[Site "https://www.chess.com"]

[Event "Titled Tuesday Blitz May 24 Late 2022"]
[White "Romero Ruscalleda, Josep"]
[Black "Pesotskiy, Mikhail"]
[WhiteFideId "2231859"]
[BlackFideId "34164453"]
[WhiteElo "2322"]
[BlackElo "2010"]
[Result "0-1"]
[Round "04"]
[TimeControl "180+1"]
[Date "2022.05.25"]
[WhiteClock "0:00:59"]
[BlackClock "0:00:55"]

1. e4 {[%clk 0:03:00]}  e6 {[%clk 0:02:58]} 2. d4 {[%clk 0:03:00]}  d5 {[%clk 0:02:58]} 3. e5 {[%clk 0:03:00]}  c5 {[%clk 0:02:58]} 4. c3 {[%clk 0:03:00]}  Qa5 {[%clk 0:02:58]} 5. dxc5 {[%clk 0:02:56]}  Qc7 {[%clk 0:02:55]} 6. Nf3 {[%clk 0:02:54]}  Bxc5 {[%clk 0:02:53]} 7. Bd3 {[%clk 0:02:54]}  Ne7 {[%clk 0:02:53]} 8. O-O {[%clk 0:02:53]}  Nbc6 {[%clk 0:02:52]} 9. a4 {[%clk 0:02:49]}  Nxe5 {[%clk 0:02:51]} 10. Nxe5 {[%clk 0:02:44]}  Qxe5 {[%clk 0:02:52]} 11. Re1 {[%clk 0:02:42]}  Qf6 {[%clk 0:02:41]} 12. Qe2 {[%clk 0:02:35]}  O-O {[%clk 0:02:30]} 13. Nd2 {[%clk 0:02:32]}  e5 {[%clk 0:02:25]} 14. Bc2 {[%clk 0:02:10]}  Bg4 {[%clk 0:02:12]} 15. Qf1 {[%clk 0:02:02]}  Ng6 {[%clk 0:02:01]} 16. b4 {[%clk 0:02:01]}  Bd6 {[%clk 0:01:57]} 17. f3 {[%clk 0:02:00]}  Bf5 {[%clk 0:01:56]} 18. Bb3 {[%clk 0:01:50]}  Nf4 {[%clk 0:01:44]} 19. c4 {[%clk 0:01:40]}  Bxb4 {[%clk 0:01:11]} 20. cxd5 {[%clk 0:01:31]}  Bd3 {[%clk 0:01:03]} 21. Qf2 {[%clk 0:01:24]}  Bc3 {[%clk 0:01:03]} 22. Ra2 {[%clk 0:01:17]}  Bd4 {[%clk 0:01:03]} 23. Re3 {[%clk 0:01:14]}  Ne2+ {[%clk 0:00:57]} 24. Rxe2 {[%clk 0:01:07]}  Bxe2 {[%clk 0:00:54]} 25. Ne4 {[%clk 0:01:05]}  Bxf2+ {[%clk 0:00:54]} 26. Kxf2 {[%clk 0:01:01]}  Qb6+ {[%clk 0:00:54]} 27. Kxe2 {[%clk 0:00:59]}  Qxb3 {[%clk 0:00:55]} 0-1


[Site "https://www.chess.com"]

[Event "Titled Tuesday Blitz May 24 Late 2022"]
[White "Roque Sola, Jose Luis"]
[Black "Rios Escobar, Adan"]
[WhiteFideId "5120390"]
[BlackFideId "3403645"]
[WhiteElo "1983"]
[BlackElo "2432"]
[Result "0-1"]
[Round "04"]
[TimeControl "180+1"]
[Date "2022.05.25"]
[WhiteClock "0:01:13"]
[BlackClock "0:01:39"]

1. c4 {[%clk 0:03:00]}  Nf6 {[%clk 0:02:53]} 2. Nc3 {[%clk 0:02:59]}  g6 {[%clk 0:02:54]} 3. Nf3 {[%clk 0:02:58]}  Bg7 {[%clk 0:02:54]} 4. g3 {[%clk 0:02:59]}  c5 {[%clk 0:02:54]} 5. Bg2 {[%clk 0:02:59]}  O-O {[%clk 0:02:54]} 6. O-O {[%clk 0:03:00]}  Nc6 {[%clk 0:02:55]} 7. a3 {[%clk 0:02:59]}  d5 {[%clk 0:02:51]} 8. cxd5 {[%clk 0:02:58]}  Nxd5 {[%clk 0:02:52]} 9. Nxd5 {[%clk 0:02:44]}  Qxd5 {[%clk 0:02:53]} 10. d3 {[%clk 0:02:44]}  b6 {[%clk 0:02:36]} 11. Nd2 {[%clk 0:02:26]}  Qd7 {[%clk 0:02:28]} 12. Nc4 {[%clk 0:02:20]}  Bb7 {[%clk 0:02:27]} 13. Rb1 {[%clk 0:02:20]}  Nd4 {[%clk 0:02:22]} 14. Bxb7 {[%clk 0:01:50]}  Qxb7 {[%clk 0:02:23]} 15. Be3 {[%clk 0:01:50]}  Qd7 {[%clk 0:02:12]} 16. Bxd4 {[%clk 0:01:47]}  Bxd4 {[%clk 0:02:09]} 17. b4 {[%clk 0:01:46]}  h5 {[%clk 0:02:04]} 18. bxc5 {[%clk 0:01:42]}  Bxc5 {[%clk 0:01:59]} 19. h4 {[%clk 0:01:42]}  Rfd8 {[%clk 0:01:50]} 20. Qd2 {[%clk 0:01:29]}  Qg4 {[%clk 0:01:42]} 21. Ne5 {[%clk 0:01:14]}  Qxg3+ {[%clk 0:01:39]} 22. Kh1 {[%clk 0:01:13]} 0-1


[Site "https://www.chess.com"]

[Event "Titled Tuesday Blitz May 24 Late 2022"]
[White "Roux, Baptiste"]
[Black "Mangialardo, Tiago Carvalho"]
[WhiteFideId "36017450"]
[BlackFideId "2130718"]
[WhiteElo "1935"]
[BlackElo "2165"]
[Result "1-0"]
[Round "04"]
[TimeControl "180+1"]
[Date "2022.05.25"]
[WhiteClock "0:00:04"]
[BlackClock "0:00:02"]

1. d4 {[%clk 0:03:00]}  d5 {[%clk 0:02:58]} 2. Bf4 {[%clk 0:02:59]}  Nf6 {[%clk 0:02:55]} 3. e3 {[%clk 0:02:58]}  Bf5 {[%clk 0:02:55]} 4. Nd2 {[%clk 0:02:56]}  e6 {[%clk 0:02:54]} 5. Ngf3 {[%clk 0:02:56]}  Bd6 {[%clk 0:02:52]} 6. Bg3 {[%clk 0:02:49]}  Nbd7 {[%clk 0:02:48]} 7. c4 {[%clk 0:02:49]}  b6 {[%clk 0:02:41]} 8. Be2 {[%clk 0:02:47]}  O-O {[%clk 0:02:40]} 9. O-O {[%clk 0:02:47]}  Qe7 {[%clk 0:02:40]} 10. Rc1 {[%clk 0:02:46]}  c5 {[%clk 0:02:35]} 11. Qb3 {[%clk 0:02:43]}  dxc4 {[%clk 0:02:14]} 12. Nxc4 {[%clk 0:02:42]}  Bxg3 {[%clk 0:02:12]} 13. hxg3 {[%clk 0:02:41]}  Be4 {[%clk 0:02:09]} 14. Nfd2 {[%clk 0:02:31]}  Bd5 {[%clk 0:02:06]} 15. Bf3 {[%clk 0:02:30]}  cxd4 {[%clk 0:01:58]} 16. exd4 {[%clk 0:02:27]}  Rac8 {[%clk 0:01:52]} 17. Bxd5 {[%clk 0:02:24]}  Nxd5 {[%clk 0:01:51]} 18. Ne4 {[%clk 0:02:19]}  N7f6 {[%clk 0:01:34]} 19. Ncd6 {[%clk 0:02:12]}  Rc7 {[%clk 0:01:18]} 20. Nxf6+ {[%clk 0:01:57]}  Nxf6 {[%clk 0:01:19]} 21. Nb5 {[%clk 0:01:53]}  Rd7 {[%clk 0:01:16]} 22. Rfd1 {[%clk 0:01:47]}  Rfd8 {[%clk 0:01:14]} 23. Qa4 {[%clk 0:01:43]}  Ne4 {[%clk 0:01:06]} 24. Nc3 {[%clk 0:01:30]}  Nf6 {[%clk 0:00:50]} 25. Nb5 {[%clk 0:01:16]}  Ne4 {[%clk 0:00:48]} 26. Qc2 {[%clk 0:01:08]}  Nd6 {[%clk 0:00:30]} 27. Nc3 {[%clk 0:00:58]}  Ne8 {[%clk 0:00:22]} 28. Qa4 {[%clk 0:00:49]}  h6 {[%clk 0:00:21]} 29. d5 {[%clk 0:00:20]}  exd5 {[%clk 0:00:22]} 30. Re1 {[%clk 0:00:20]}  Qd6 {[%clk 0:00:16]} 31. Nb5 {[%clk 0:00:16]}  Qb8 {[%clk 0:00:08]} 32. Nd4 {[%clk 0:00:15]}  Nf6 {[%clk 0:00:07]} 33. Nc6 {[%clk 0:00:14]}  b5 {[%clk 0:00:04]} 34. Nxb8 {[%clk 0:00:13]}  bxa4 {[%clk 0:00:04]} 35. Nxd7 {[%clk 0:00:13]}  Rxd7 {[%clk 0:00:04]} 36. Rc5 {[%clk 0:00:11]}  g5 {[%clk 0:00:04]} 37. Rd1 {[%clk 0:00:09]}  Kg7 {[%clk 0:00:04]} 38. Ra5 {[%clk 0:00:08]}  Kg6 {[%clk 0:00:04]} 39. Rxa4 {[%clk 0:00:08]}  Kf5 {[%clk 0:00:04]} 40. f3 {[%clk 0:00:08]}  h5 {[%clk 0:00:03]} 41. Kf2 {[%clk 0:00:08]}  g4 {[%clk 0:00:02]} 42. b3 {[%clk 0:00:07]}  Ke5 {[%clk 0:00:02]} 43. Re1+ {[%clk 0:00:04]}  Kf5 {[%clk 0:00:02]} 44. Ra5 {[%clk 0:00:04]} 1-0


[Site "https://www.chess.com"]

[Event "Titled Tuesday Blitz May 24 Late 2022"]
[White "Saim, Mohamed Ilias"]
[Black "Medeiros Jr, Francisco De Assis"]
[WhiteFideId "7900465"]
[BlackFideId "2114267"]
[WhiteElo "2006"]
[BlackElo "2003"]
[Result "0-1"]
[Round "04"]
[TimeControl "180+1"]
[Date "2022.05.25"]
[WhiteClock "0:02:26"]
[BlackClock "0:02:12"]

1. d4 {[%clk 0:03:00]}  d5 {[%clk 0:02:56]} 2. Nf3 {[%clk 0:03:00]}  e6 {[%clk 0:02:57]} 3. e3 {[%clk 0:02:59]}  Nf6 {[%clk 0:02:55]} 4. c4 {[%clk 0:02:59]}  a6 {[%clk 0:02:53]} 5. Nbd2 {[%clk 0:02:57]}  dxc4 {[%clk 0:02:47]} 6. Nxc4 {[%clk 0:02:57]}  b5 {[%clk 0:02:48]} 7. Nce5 {[%clk 0:02:57]}  Bb7 {[%clk 0:02:44]} 8. Qc2 {[%clk 0:02:49]}  Bb4+ {[%clk 0:02:30]} 9. Bd2 {[%clk 0:02:48]}  Bxd2+ {[%clk 0:02:30]} 10. Nxd2 {[%clk 0:02:44]}  O-O {[%clk 0:02:25]} 11. Rc1 {[%clk 0:02:37]}  Nbd7 {[%clk 0:02:22]} 12. Nxd7 {[%clk 0:02:27]}  Qxd7 {[%clk 0:02:18]} 13. Qxc7 {[%clk 0:02:26]}  Rac8 {[%clk 0:02:12]} 0-1


[Site "https://www.chess.com"]

[Event "Titled Tuesday Blitz May 24 Late 2022"]
[White "Sanchez, Robert"]
[Black "Avramidou, Anastasia"]
[WhiteFideId "2034360"]
[BlackFideId "4239873"]
[WhiteElo "2276"]
[BlackElo "2183"]
[Result "0-1"]
[Round "04"]
[TimeControl "180+1"]
[Date "2022.05.25"]
[WhiteClock "0:00:04"]
[BlackClock "0:00:05"]

1. e4 {[%clk 0:03:00]}  g6 {[%clk 0:02:43]} 2. d4 {[%clk 0:03:00]}  Bg7 {[%clk 0:02:44]} 3. Nc3 {[%clk 0:03:00]}  c6 {[%clk 0:02:44]} 4. Nf3 {[%clk 0:02:58]}  d6 {[%clk 0:02:42]} 5. Be3 {[%clk 0:02:55]}  Nf6 {[%clk 0:02:43]} 6. h3 {[%clk 0:02:55]}  O-O {[%clk 0:02:43]} 7. Qd2 {[%clk 0:02:55]}  b5 {[%clk 0:02:44]} 8. Bd3 {[%clk 0:02:55]}  a5 {[%clk 0:02:44]} 9. O-O {[%clk 0:02:55]}  b4 {[%clk 0:02:45]} 10. Ne2 {[%clk 0:02:54]}  Bb7 {[%clk 0:02:45]} 11. Ng3 {[%clk 0:02:54]}  Qc7 {[%clk 0:02:45]} 12. Bh6 {[%clk 0:02:54]}  e5 {[%clk 0:02:45]} 13. Bxg7 {[%clk 0:02:54]}  Kxg7 {[%clk 0:02:46]} 14. Nf5+ {[%clk 0:02:54]}  Kh8 {[%clk 0:02:17]} 15. Qh6 {[%clk 0:02:50]}  Rg8 {[%clk 0:02:18]} 16. Ng5 {[%clk 0:02:38]}  exd4 {[%clk 0:01:29]} 17. f4 {[%clk 0:02:32]}  gxf5 {[%clk 0:01:04]} 18. Qxf6+ {[%clk 0:02:31]}  Rg7 {[%clk 0:01:04]} 19. Rae1 {[%clk 0:02:18]}  Kg8 {[%clk 0:00:53]} 20. Qxd4 {[%clk 0:02:08]}  c5 {[%clk 0:00:50]} 21. Qf6 {[%clk 0:01:54]}  Nd7 {[%clk 0:00:47]} 22. Qxf5 {[%clk 0:01:53]}  c4 {[%clk 0:00:43]} 23. Be2 {[%clk 0:01:49]}  Re8 {[%clk 0:00:37]} 24. Bh5 {[%clk 0:01:37]}  Qc5+ {[%clk 0:00:31]} 25. Qxc5 {[%clk 0:01:35]}  Nxc5 {[%clk 0:00:32]} 26. Nxf7 {[%clk 0:01:16]}  Rxf7 {[%clk 0:00:31]} 27. Bxf7+ {[%clk 0:01:16]}  Kxf7 {[%clk 0:00:32]} 28. e5 {[%clk 0:01:17]}  Rg8 {[%clk 0:00:19]} 29. Rf2 {[%clk 0:01:12]}  Ne4 {[%clk 0:00:19]} 30. Rfe2 {[%clk 0:01:07]}  d5 {[%clk 0:00:19]} 31. Rd1 {[%clk 0:01:00]}  Ke6 {[%clk 0:00:18]} 32. Kh2 {[%clk 0:00:55]}  h5 {[%clk 0:00:18]} 33. g3 {[%clk 0:00:23]}  Nxg3 {[%clk 0:00:15]} 34. Rg2 {[%clk 0:00:14]}  h4 {[%clk 0:00:15]} 35. Rd4 {[%clk 0:00:13]}  Rg7 {[%clk 0:00:14]} 36. c3 {[%clk 0:00:13]}  bxc3 {[%clk 0:00:13]} 37. bxc3 {[%clk 0:00:14]}  Nf5 {[%clk 0:00:12]} 38. Rxg7 {[%clk 0:00:13]}  Nxg7 {[%clk 0:00:12]} 39. Rd2 {[%clk 0:00:13]}  Kf5 {[%clk 0:00:12]} 40. Rb2 {[%clk 0:00:13]}  Bc6 {[%clk 0:00:08]} 41. Rb6 {[%clk 0:00:13]}  Kxf4 {[%clk 0:00:06]} 42. Rxc6 {[%clk 0:00:11]}  Kxe5 {[%clk 0:00:07]} 43. Rc5 {[%clk 0:00:11]}  Nf5 {[%clk 0:00:07]} 44. Rxa5 {[%clk 0:00:11]}  Ke4 {[%clk 0:00:08]} 45. Rb5 {[%clk 0:00:09]}  Ne3 {[%clk 0:00:07]} 46. a4 {[%clk 0:00:09]}  Nd1 {[%clk 0:00:07]} 47. Rb1 {[%clk 0:00:07]}  Nxc3 {[%clk 0:00:08]} 48. Ra1 {[%clk 0:00:07]}  d4 {[%clk 0:00:07]} 49. Kg2 {[%clk 0:00:07]}  d3 {[%clk 0:00:06]} 50. a5 {[%clk 0:00:07]}  Nb5 {[%clk 0:00:06]} 51. a6 {[%clk 0:00:08]}  c3 {[%clk 0:00:06]} 52. Kf2 {[%clk 0:00:07]}  c2 {[%clk 0:00:06]} 53. Ke1 {[%clk 0:00:07]}  Ke3 {[%clk 0:00:06]} 54. Rc1 {[%clk 0:00:04]}  d2+ {[%clk 0:00:05]} 0-1


[Site "https://www.chess.com"]

[Event "Titled Tuesday Blitz May 24 Late 2022"]
[White "Sapunov, Evgeny"]
[Black "Sirosh, Ilja"]
[WhiteFideId "4126661"]
[BlackFideId "4500458"]
[WhiteElo "2470"]
[BlackElo "2241"]
[Result "0-1"]
[Round "04"]
[TimeControl "180+1"]
[Date "2022.05.24"]
[WhiteClock "0:00:05"]
[BlackClock "0:00:03"]

1. c4 {[%clk 0:03:00]}  e6 {[%clk 0:02:59]} 2. Nf3 {[%clk 0:03:00]}  d5 {[%clk 0:03:00]} 3. d4 {[%clk 0:02:58]}  Nf6 {[%clk 0:02:59]} 4. Nc3 {[%clk 0:02:59]}  c5 {[%clk 0:02:59]} 5. cxd5 {[%clk 0:02:58]}  exd5 {[%clk 0:03:00]} 6. g3 {[%clk 0:02:58]}  Nc6 {[%clk 0:03:00]} 7. Bg2 {[%clk 0:02:59]}  cxd4 {[%clk 0:03:01]} 8. Nxd4 {[%clk 0:02:59]}  Bc5 {[%clk 0:03:01]} 9. Nxc6 {[%clk 0:02:57]}  bxc6 {[%clk 0:03:02]} 10. Qc2 {[%clk 0:02:52]}  Bb6 {[%clk 0:02:55]} 11. O-O {[%clk 0:02:51]}  O-O {[%clk 0:02:55]} 12. Na4 {[%clk 0:02:50]}  Bd7 {[%clk 0:02:53]} 13. Nc5 {[%clk 0:02:31]}  Bg4 {[%clk 0:02:30]} 14. Be3 {[%clk 0:02:19]}  Qe7 {[%clk 0:02:24]} 15. b4 {[%clk 0:02:05]}  a5 {[%clk 0:02:18]} 16. a3 {[%clk 0:02:05]}  axb4 {[%clk 0:02:17]} 17. axb4 {[%clk 0:02:05]}  h6 {[%clk 0:02:16]} 18. Rfe1 {[%clk 0:01:42]}  Rfe8 {[%clk 0:02:05]} 19. Rxa8 {[%clk 0:01:40]}  Rxa8 {[%clk 0:02:05]} 20. Bd4 {[%clk 0:01:40]}  Bxc5 {[%clk 0:01:43]} 21. bxc5 {[%clk 0:01:34]}  Qe6 {[%clk 0:01:37]} 22. Qc3 {[%clk 0:01:26]}  Ra4 {[%clk 0:01:29]} 23. f3 {[%clk 0:01:16]}  Rc4 {[%clk 0:01:27]} 24. Qe3 {[%clk 0:01:10]}  Qxe3+ {[%clk 0:01:15]} 25. Bxe3 {[%clk 0:01:10]}  Bf5 {[%clk 0:01:14]} 26. Rc1 {[%clk 0:01:10]}  Rb4 {[%clk 0:00:54]} 27. g4 {[%clk 0:01:08]}  Bb1 {[%clk 0:00:49]} 28. Bd2 {[%clk 0:00:56]}  Rb3 {[%clk 0:00:47]} 29. Bc3 {[%clk 0:00:54]}  Nd7 {[%clk 0:00:46]} 30. Bd4 {[%clk 0:00:54]}  Nf8 {[%clk 0:00:46]} 31. Kf2 {[%clk 0:00:47]}  Ne6 {[%clk 0:00:46]} 32. Be5 {[%clk 0:00:47]}  f6 {[%clk 0:00:46]} 33. Bd6 {[%clk 0:00:47]}  g5 {[%clk 0:00:43]} 34. Bf1 {[%clk 0:00:44]}  Rb2 {[%clk 0:00:43]} 35. Kg3 {[%clk 0:00:39]}  Kf7 {[%clk 0:00:32]} 36. h4 {[%clk 0:00:38]}  Ba2 {[%clk 0:00:24]} 37. Ra1 {[%clk 0:00:36]}  Nd4 {[%clk 0:00:22]} 38. h5 {[%clk 0:00:24]}  Nxe2+ {[%clk 0:00:17]} 39. Bxe2 {[%clk 0:00:24]}  Rxe2 {[%clk 0:00:18]} 40. Rd1 {[%clk 0:00:24]}  Ke6 {[%clk 0:00:17]} 41. Rd3 {[%clk 0:00:23]}  Bc4 {[%clk 0:00:17]} 42. Ra3 {[%clk 0:00:23]}  d4 {[%clk 0:00:17]} 43. Ra7 {[%clk 0:00:19]}  Kd5 {[%clk 0:00:13]} 44. Rd7 {[%clk 0:00:19]}  Bb5 {[%clk 0:00:05]} 45. Bf8+ {[%clk 0:00:17]}  Kc4 {[%clk 0:00:04]} 46. Bxh6 {[%clk 0:00:16]}  d3 {[%clk 0:00:05]} 47. Bg7 {[%clk 0:00:16]}  d2 {[%clk 0:00:03]} 48. h6 {[%clk 0:00:16]}  Kc3 {[%clk 0:00:01]} 49. h7 {[%clk 0:00:12]}  Bd3 {[%clk 0:00:02]} 50. Bxf6+ {[%clk 0:00:11]}  Kc2 {[%clk 0:00:02]} 51. h8=Q {[%clk 0:00:08]}  d1=Q {[%clk 0:00:02]} 52. Bd4 {[%clk 0:00:05]}  Qe1+ {[%clk 0:00:02]} 53. Kh3 {[%clk 0:00:04]}  Qh1+ {[%clk 0:00:02]} 54. Kg3 {[%clk 0:00:05]}  Qg2# {[%clk 0:00:03]} 0-1


[Site "https://www.chess.com"]

[Event "Titled Tuesday Blitz May 24 Late 2022"]
[White "Senthilkumar, Pranav"]
[Black "Tisaj, Domen"]
[WhiteFideId "2083477"]
[BlackFideId "14628708"]
[WhiteElo "2414"]
[BlackElo "2326"]
[Result "0-1"]
[Round "04"]
[TimeControl "180+1"]
[Date "2022.05.25"]
[WhiteClock "0:00:53"]
[BlackClock "0:01:10"]

1. Nf3 {[%clk 0:02:53]}  Nf6 {[%clk 0:03:00]} 2. g3 {[%clk 0:02:33]}  d5 {[%clk 0:02:48]} 3. Bg2 {[%clk 0:02:34]}  g6 {[%clk 0:02:45]} 4. O-O {[%clk 0:02:27]}  Bg7 {[%clk 0:02:46]} 5. c3 {[%clk 0:02:26]}  O-O {[%clk 0:02:45]} 6. d4 {[%clk 0:02:27]}  Bf5 {[%clk 0:02:44]} 7. Bf4 {[%clk 0:02:27]}  c6 {[%clk 0:02:42]} 8. Nbd2 {[%clk 0:02:27]}  Nbd7 {[%clk 0:02:42]} 9. Nh4 {[%clk 0:02:27]}  Be6 {[%clk 0:02:41]} 10. e4 {[%clk 0:02:27]}  dxe4 {[%clk 0:02:41]} 11. Nxe4 {[%clk 0:02:28]}  Nxe4 {[%clk 0:02:41]} 12. Bxe4 {[%clk 0:02:29]}  Bd5 {[%clk 0:02:42]} 13. Bxd5 {[%clk 0:02:29]}  cxd5 {[%clk 0:02:43]} 14. Qb3 {[%clk 0:02:28]}  Nb6 {[%clk 0:02:39]} 15. Nf3 {[%clk 0:02:28]}  e6 {[%clk 0:02:36]} 16. a4 {[%clk 0:02:27]}  Qe7 {[%clk 0:02:34]} 17. Ne5 {[%clk 0:02:25]}  Rfc8 {[%clk 0:02:34]} 18. a5 {[%clk 0:02:25]}  Nc4 {[%clk 0:02:34]} 19. Nxc4 {[%clk 0:02:25]}  Rxc4 {[%clk 0:02:34]} 20. Ra4 {[%clk 0:02:23]}  Rac8 {[%clk 0:02:31]} 21. Rxc4 {[%clk 0:02:23]}  Rxc4 {[%clk 0:02:31]} 22. Qb5 {[%clk 0:02:21]}  a6 {[%clk 0:02:31]} 23. Qb6 {[%clk 0:02:20]}  Rc6 {[%clk 0:02:30]} 24. Qb3 {[%clk 0:02:20]}  g5 {[%clk 0:02:27]} 25. Bd2 {[%clk 0:02:16]}  g4 {[%clk 0:02:26]} 26. Re1 {[%clk 0:02:16]}  h5 {[%clk 0:02:24]} 27. Qxd5 {[%clk 0:02:16]}  exd5 {[%clk 0:02:18]} 28. Rxe7 {[%clk 0:02:15]}  b6 {[%clk 0:02:18]} 29. axb6 {[%clk 0:02:11]}  Rxb6 {[%clk 0:02:19]} 30. Bc1 {[%clk 0:02:11]}  Rb5 {[%clk 0:02:15]} 31. Kg2 {[%clk 0:02:11]}  a5 {[%clk 0:02:15]} 32. Rc7 {[%clk 0:02:07]}  Bf6 {[%clk 0:02:14]} 33. Rc5 {[%clk 0:02:06]}  Rxc5 {[%clk 0:02:12]} 34. dxc5 {[%clk 0:02:07]}  Kf8 {[%clk 0:02:12]} 35. b4 {[%clk 0:01:48]}  Bxc3 {[%clk 0:02:10]} 36. b5 {[%clk 0:01:46]}  Bd4 {[%clk 0:02:01]} 37. Ba3 {[%clk 0:01:36]}  Ke8 {[%clk 0:01:55]} 38. c6 {[%clk 0:01:29]}  Bb6 {[%clk 0:01:54]} 39. Bd6 {[%clk 0:01:29]}  a4 {[%clk 0:01:52]} 40. Kf1 {[%clk 0:01:29]}  Kd8 {[%clk 0:01:47]} 41. Ke2 {[%clk 0:01:29]}  f5 {[%clk 0:01:48]} 42. Kd3 {[%clk 0:01:29]}  Bxf2 {[%clk 0:01:47]} 43. Bb4 {[%clk 0:01:24]}  f4 {[%clk 0:01:33]} 44. Ba5+ {[%clk 0:01:21]}  Kc8 {[%clk 0:01:33]} 45. b6 {[%clk 0:01:19]}  Bxb6 {[%clk 0:01:21]} 46. Bxb6 {[%clk 0:01:20]}  f3 {[%clk 0:01:20]} 47. Kc3 {[%clk 0:01:16]}  d4+ {[%clk 0:01:15]} 48. Bxd4 {[%clk 0:01:15]}  Kc7 {[%clk 0:01:15]} 49. Kb4 {[%clk 0:01:04]}  Kxc6 {[%clk 0:01:16]} 50. Kxa4 {[%clk 0:01:04]}  Kd5 {[%clk 0:01:16]} 51. Bb6 {[%clk 0:01:00]}  Kc4 {[%clk 0:01:16]} 52. Ka3 {[%clk 0:00:59]}  Kd3 {[%clk 0:01:14]} 53. Kb4 {[%clk 0:01:00]}  Ke2 {[%clk 0:01:14]} 54. Kc4 {[%clk 0:01:00]}  f2 {[%clk 0:01:08]} 55. Bxf2 {[%clk 0:00:59]}  Kxf2 {[%clk 0:01:09]} 56. Kd3 {[%clk 0:00:59]}  Kg2 {[%clk 0:01:10]} 57. Ke3 {[%clk 0:00:53]}  Kxh2 {[%clk 0:01:10]} 58. Kf4 {[%clk 0:00:53]}  Kh3 {[%clk 0:01:10]} 0-1


[Site "https://www.chess.com"]